fUSD/lending_fUSD_20241225
["ID","MTS","AMOUNT","RATE_DAILY","PERIOD"]
[346594354,1735121468680,-500.0,0.00010469,2]
[346594355,1735121468689,-837.04,0.00010469,2]
[346594356,1735121468700,-531.4,0.00010469,2]
[346594357,1735121468709,-267.93522574,0.00010469,2]
[346594358,1735121468719,-500.0,0.00010469,2]
[346594359,1735121468729,-380.72811842,0.00010469,2]
[346594360,1735121468738,-599.92,0.00010469,2]
[346594361,1735121468748,-1324.48,0.00010469,2]
[346594362,1735121468758,-500.0,0.00010469,2]
[346594363,1735121468767,-542.46,0.00010469,2]
[346594364,1735121468777,-500.0,0.00010469,2]
[346594365,1735121468787,-500.0,0.00010469,2]
[346594366,1735121468797,-988.6,0.00010469,2]
[346594367,1735121468807,-729.38,0.00010469,2]
[346594368,1735121468817,-578.71,0.00010469,2]
[346594369,1735121468827,-500.0,0.00010469,2]
[346594370,1735121468836,-686.11,0.00010469,2]
[346594371,1735121468845,-500.0,0.00010469,2]
[346594372,1735121468855,-868.17,0.00010469,2]
[346594373,1735121468864,-500.0,0.00010469,2]
[346594374,1735121468875,-500.0,0.00010469,2]
[346594375,1735121468885,-554.5,0.00010469,2]
[346594376,1735121468894,-500.0,0.00010469,2]
[346594377,1735121468904,-500.0,0.00010469,2]
[346594378,1735121468913,-937.72,0.00010469,2]
[346594379,1735121468923,-500.0,0.00010469,2]
[346594380,1735121468932,-500.0,0.00010469,2]
[346594381,1735121468942,-500.0,0.00010469,2]
[346594382,1735121468951,-500.0,0.00010469,2]
[346594383,1735121468960,-500.0,0.00010469,2]
[346594384,1735121468970,-500.0,0.00010469,2]
[346594385,1735121468980,-500.0,0.00010469,2]
[346594386,1735121468990,-500.0,0.00010469,2]
[346594387,1735121468999,-1147.25,0.00010469,2]
[346594388,1735121469009,-1955.227982,0.00010469,2]
[346594389,1735121469019,-1918.8046,0.00010469,2]
[346594390,1735121469028,-500.0,0.00010469,2]
[346594391,1735121469038,-968.95,0.00010469,2]
[346594392,1735121469047,-965.34,0.00010469,2]
[346594393,1735121469057,-500.0,0.00010469,2]
[346594394,1735121469067,-580.71,0.00010469,2]
[346594395,1735121469076,-500.0,0.00010469,2]
[346594396,1735121469086,-500.0,0.00010469,2]
[346594397,1735121469096,-1001.52,0.00010469,2]
[346594398,1735121469105,-562.22,0.00010469,2]
[346594399,1735121469115,-500.0,0.00010469,2]
[346594400,1735121469124,-500.0,0.00010469,2]
[346594401,1735121469133,-500.0,0.00010469,2]
[346594402,1735121469143,-500.0,0.00010469,2]
[346594403,1735121469152,-500.0,0.00010469,2]
[346594404,1735121469162,-500.0,0.00010469,2]
[346594405,1735121469171,-500.0,0.00010469,2]
[346594406,1735121469180,-500.0,0.00010469,2]
[346594407,1735121469192,-500.0,0.00010469,2]
[346594408,1735121469202,-613.96,0.00010469,2]
[346594409,1735121469213,-500.0,0.00010469,2]
[346594410,1735121469222,-500.0,0.00010469,2]
[346594411,1735121469233,-567.43,0.00010469,2]
[346594412,1735121469243,-542.45,0.00010469,2]
[346594413,1735121469252,-525.92,0.00010469,2]
[346594414,1735121469261,-500.0,0.00010469,2]
[346594415,1735121469271,-500.0,0.00010469,2]
[346594416,1735121469281,-1441.38,0.00010469,2]
[346594417,1735121469290,-598.39,0.00010469,2]
[346594418,1735121469301,-500.0,0.00010469,2]
[346594419,1735121469311,-500.0,0.00010469,2]
[346594420,1735121469321,-695.72,0.00010469,2]
[346594421,1735121469330,-500.0,0.00010469,2]
[346594422,1735121469339,-500.0,0.00010469,2]
[346594423,1735121469348,-500.0,0.00010469,2]
[346594424,1735121469358,-1567.56,0.00010469,2]
[346594425,1735121469368,-500.0,0.00010469,2]
[346594426,1735121469377,-500.0,0.00010469,2]
[346594427,1735121469387,-563.82,0.00010469,2]
[346594428,1735121469396,-500.0,0.00010469,2]
[346594429,1735121469406,-1432.67,0.00010469,2]
[346594430,1735121469415,-830.1,0.00010469,2]
[346594431,1735121469425,-500.0,0.00010469,2]
[346594432,1735121469434,-714.64,0.00010469,2]
[346594433,1735121469443,-781.04,0.00010469,2]
[346594434,1735121469453,-507.47,0.00010469,2]
[346594435,1735121469462,-937.79,0.00010469,2]
[346594436,1735121469471,-1069.58,0.00010469,2]
[346594437,1735121469481,-886.64,0.00010469,2]
[346594438,1735121469490,-500.0,0.00010469,2]
[346594439,1735121469500,-603.43,0.00010469,2]
[346594440,1735121469510,-500.0,0.00010469,2]
[346594441,1735121469519,-500.0,0.00010469,2]
[346594442,1735121469528,-500.0,0.00010469,2]
[346594443,1735121469537,-151.0,0.00010469,2]
[346594444,1735121469546,-723.44,0.00010469,2]
[346594445,1735121469556,-1652.33,0.00010469,2]
[346594446,1735121469566,-1173.57,0.00010469,2]
[346594447,1735121469576,-500.0,0.00010469,2]
[346594448,1735121469587,-1573.68,0.00010469,2]
[346594449,1735121469596,-500.0,0.00010469,2]
[346594450,1735121469605,-500.0,0.00010469,2]
[346594451,1735121469615,-777.71,0.00010469,2]
[346594452,1735121469625,-500.0,0.00010469,2]
[346594453,1735121469634,-1198.76,0.00010469,2]
[346594454,1735121469643,-500.0,0.00010469,2]
[346594455,1735121469652,-583.59,0.00010469,2]
[346594456,1735121469663,-500.0,0.00010469,2]
[346594457,1735121469673,-332.83620905,0.00010469,2]
[346594458,1735121469682,-597.89,0.00010469,2]
[346594459,1735121469691,-500.0,0.00010469,2]
[346594460,1735121469701,-500.0,0.00010469,2]
[346594461,1735121469710,-500.0,0.00010469,2]
[346594462,1735121469723,-500.0,0.00010469,2]
[346594463,1735121469735,-500.0,0.00010469,2]
[346594464,1735121469747,-681.28,0.00010469,2]
[346594465,1735121469756,-500.0,0.00010469,2]
[346594466,1735121469765,-610.42,0.00010469,2]
[346594467,1735121469774,-500.0,0.00010469,2]
[346594468,1735121469784,-500.0,0.00010469,2]
[346594469,1735121469794,-500.0,0.00010469,2]
[346594470,1735121469803,-525.16,0.00010469,2]
[346594471,1735121469812,-770.41,0.00010469,2]
[346594472,1735121469822,-500.0,0.00010469,2]
[346594473,1735121469831,-1372.33,0.00010469,2]
[346594474,1735121469841,-500.0,0.00010469,2]
[346594475,1735121469850,-500.0,0.00010469,2]
[346594476,1735121469859,-866.09,0.00010469,2]
[346594477,1735121469869,-500.0,0.00010469,2]
[346594478,1735121469878,-500.0,0.00010469,2]
[346594479,1735121469888,-500.0,0.00010469,2]
[346594480,1735121469897,-1072.75,0.00010469,2]
[346594481,1735121469906,-786.63,0.00010469,2]
[346594482,1735121469915,-1416.71,0.00010469,2]
[346594483,1735121469924,-981.74,0.00010469,2]
[346594484,1735121469935,-763.42,0.00010469,2]
[346594485,1735121469946,-884.95,0.00010469,2]
[346594486,1735121469955,-558.81,0.00010469,2]
[346594487,1735121469964,-500.0,0.00010469,2]
[346594488,1735121469974,-500.0,0.00010469,2]
[346594489,1735121469985,-932.19,0.00010469,2]
[346594490,1735121469994,-3266.04,0.00010469,2]
[346594491,1735121470004,-782.62,0.00010469,2]
[346594492,1735121470013,-1457.68,0.00010469,2]
[346594493,1735121470023,-662.95,0.00010469,2]
[346594494,1735121470033,-2774.33,0.00010469,2]
[346594495,1735121470042,-500.0,0.00010469,2]
[346594496,1735121470051,-500.0,0.00010469,2]
[346594497,1735121470061,-1032.51,0.00010469,2]
[346594498,1735121470070,-614.33,0.00010469,2]
[346594499,1735121470080,-868.66,0.00010469,2]
[346594500,1735121470090,-1686.95,0.00010469,2]
[346594501,1735121470100,-947.76,0.00010469,2]
[346594502,1735121470109,-500.0,0.00010469,2]
[346594503,1735121470119,-2625.49,0.00010469,2]
[346594504,1735121470128,-879.26,0.00010469,2]
[346594505,1735121470138,-1120.56,0.00010469,2]
[346594506,1735121470147,-651.07,0.00010469,2]
[346594507,1735121470157,-693.15,0.00010469,2]
[346594508,1735121470166,-9705.56,0.00010469,2]
[346594509,1735121470176,-500.0,0.00010469,2]
[346594510,1735121470185,-2950.64,0.00010469,2]
[346594511,1735121470195,-1954.16,0.00010469,2]
[346594512,1735121470204,-415.62063895,0.00010469,2]
[346594513,1735121470213,-1521.45,0.00010469,2]
[346594514,1735121470223,-602.35,0.00010469,2]
[346594515,1735121470238,-500.0,0.00010469,2]
[346594516,1735121470248,-5241.9,0.00010469,2]
[346594517,1735121470259,-663.43,0.00010469,2]
[346594518,1735121470270,-15069.27,0.00010469,2]
[346594519,1735121470281,-500.0,0.00010469,2]
[346594520,1735121470291,-1726.83,0.00010469,2]
[346594521,1735121470302,-500.0,0.00010469,2]
[346594522,1735121470313,-1104.72,0.00010469,2]
[346594523,1735121470323,-1127.64,0.00010469,2]
[346594524,1735121470333,-534.94,0.00010469,2]
[346594525,1735121470343,-1026.79,0.00010469,2]
[346594526,1735121470352,-896.54,0.00010469,2]
[346594527,1735121470362,-2966.46,0.00010469,2]
[346594528,1735121470372,-500.0,0.00010469,2]
[346594529,1735121470381,-1546.77,0.00010469,2]
[346594530,1735121470391,-500.0,0.00010469,2]
[346594531,1735121470401,-1386.75,0.00010469,2]
[346594532,1735121470412,-607.57,0.00010469,2]
[346594533,1735121470422,-674.58,0.00010469,2]
[346594534,1735121470432,-500.0,0.00010469,2]
[346594535,1735121470442,-1679.97,0.00010469,2]
[346594536,1735121470452,-1492.35,0.00010469,2]
[346594537,1735121470462,-13122.69,0.00010469,2]
[346594538,1735121470472,-3728.81,0.00010469,2]
[346594539,1735121470488,-561.67,0.00010469,2]
[346594540,1735121470499,-500.0,0.00010469,2]
[346594541,1735121470508,-1456.69,0.00010469,2]
[346594542,1735121470518,-500.0,0.00010469,2]
[346594543,1735121470528,-734.46,0.00010469,2]
[346594544,1735121470538,-500.0,0.00010469,2]
[346594545,1735121470548,-3844.01,0.00010469,2]
[346594546,1735121470559,-949.27,0.00010469,2]
[346594547,1735121470570,-1852.35,0.00010469,2]
[346594548,1735121470581,-500.0,0.00010469,2]
[346594549,1735121470594,-5197.85,0.00010469,2]
[346594550,1735121470604,-1573.82,0.00010469,2]
[346594551,1735121470613,-500.0,0.00010469,2]
[346594552,1735121470623,-597.94,0.00010469,2]
[346594553,1735121470635,-9501.48,0.00010469,2]
[346594554,1735121470644,-537.41,0.00010469,2]
[346594555,1735121470654,-500.0,0.00010469,2]
[346594556,1735121470666,-500.0,0.00010469,2]
[346594557,1735121470676,-500.0,0.00010469,2]
[346594558,1735121470685,-3882.94,0.00010469,2]
[346594559,1735121470695,-1703.23,0.00010469,2]
[346594560,1735121470705,-6734.4,0.00010469,2]
[346594561,1735121470715,-716.78,0.00010469,2]
[346594562,1735121470725,-5704.66,0.00010469,2]
[346594563,1735121470738,-2327.15,0.00010469,2]
[346594564,1735121470748,-500.0,0.00010469,2]
[346594565,1735121470758,-1699.39,0.00010469,2]
[346594566,1735121470769,-940.67,0.00010469,2]
[346594567,1735121470778,-2729.98,0.00010469,2]
[346594568,1735121470788,-500.0,0.00010469,2]
[346594569,1735121470798,-803.12,0.00010469,2]
[346594570,1735121470808,-843.37,0.00010469,2]
[346594571,1735121470817,-784.4,0.00010469,2]
[346594572,1735121470827,-10516.12,0.00010469,2]
[346594573,1735121470837,-500.0,0.00010469,2]
[346594574,1735121470848,-4917.21,0.00010469,2]
[346594575,1735121470858,-2540.72,0.00010469,2]
[346594576,1735121470869,-518.20360037,0.00010469,2]
[346594577,1735121470880,-1121.6,0.00010469,2]
[346594578,1735121470891,-500.0,0.00010469,2]
[346594579,1735121470901,-5236.29,0.00010469,2]
[346594580,1735121471066,-1361.9,0.00010469,2]
[346594581,1735121471076,-4545.88,0.00010469,2]
[346594582,1735121471086,-6600.15,0.00010469,2]
[346594583,1735121471097,-1071.33,0.00010469,2]
[346594584,1735121471106,-500.0,0.00010469,2]
[346594585,1735121471116,-500.0,0.00010469,2]
[346594586,1735121471125,-500.0,0.00010469,2]
[346594587,1735121471135,-595.64,0.00010469,2]
[346594588,1735121471144,-6384.79,0.00010469,2]
[346594589,1735121471153,-1995.53,0.00010469,2]
[346594590,1735121471163,-500.0,0.00010469,2]
[346594591,1735121471172,-16588.38,0.00010469,2]
[346594592,1735121471182,-500.0,0.00010469,2]
[346594593,1735121471191,-500.0,0.00010469,2]
[346594594,1735121471201,-500.0,0.00010469,2]
[346594595,1735121471210,-500.0,0.00010469,2]
[346594596,1735121471220,-3184.37,0.00010469,2]
[346594597,1735121471230,-500.0,0.00010469,2]
[346594598,1735121471239,-1137.56,0.00010469,2]
[346594599,1735121471248,-1693.06,0.00010469,2]
[346594600,1735121471258,-500.0,0.00010469,2]
[346594601,1735121471267,-500.0,0.00010469,2]
[346594602,1735121471277,-7562.77,0.00010469,2]
[346594603,1735121471286,-1211.06,0.00010469,2]
[346594604,1735121471296,-500.0,0.00010469,2]
[346594605,1735121471305,-2327.36,0.00010469,2]
[346594606,1735121471314,-2177.93,0.00010469,2]
[346594607,1735121471324,-500.0,0.00010469,2]
[346594608,1735121471333,-1704.0,0.00010469,2]
[346594609,1735121471342,-500.0,0.00010469,2]
[346594610,1735121471351,-500.0,0.00010469,2]
[346594611,1735121471360,-829.17,0.00010469,2]
[346594612,1735121471370,-1421.94,0.00010469,2]
[346594613,1735121471379,-1717.24,0.00010469,2]
[346594614,1735121471388,-6920.22,0.00010469,2]
[346594615,1735121471398,-1496.25,0.00010469,2]
[346594616,1735121471407,-500.0,0.00010469,2]
[346594617,1735121471416,-551.78326092,0.00010469,2]
[346594618,1735121471425,-1317.1,0.00010469,2]
[346594619,1735121471435,-1085.37,0.00010469,2]
[346594620,1735121471444,-511.7,0.00010469,2]
[346594621,1735121471453,-1025.95,0.00010469,2]
[346594622,1735121471462,-812.72,0.00010469,2]
[346594623,1735121471472,-1419.97,0.00010469,2]
[346594624,1735121471482,-869.54,0.00010469,2]
[346594625,1735121471491,-500.0,0.00010469,2]
[346594626,1735121471501,-3301.81,0.00010469,2]
[346594627,1735121471510,-1612.21,0.00010469,2]
[346594628,1735121471520,-500.0,0.00010469,2]
[346594629,1735121471529,-500.0,0.00010469,2]
[346594630,1735121471538,-2029.64,0.00010469,2]
[346594631,1735121471548,-500.0,0.0001047,2]
[346594632,1735121471559,-920.93,0.0001047,2]
[346594633,1735121471568,-1488.65,0.0001047,2]
[346594634,1735121471578,-1437.59,0.0001047,2]
[346594635,1735121471591,-1785.18,0.0001047,2]
[346594636,1735121471601,-951.43,0.0001047,2]
[346594637,1735121471613,-500.0,0.0001047,2]
[346594638,1735121471626,-500.0,0.0001047,2]
[346594639,1735121471635,-1306.16,0.0001047,2]
[346594640,1735121471644,-1421.83,0.0001047,2]
[346594641,1735121471653,-1013.58,0.0001047,2]
[346594642,1735121471665,-1653.48,0.0001047,2]
[346594643,1735121471678,-500.0,0.0001047,2]
[346594644,1735121471687,-1070.49,0.0001047,2]
[346594645,1735121471696,-2210.41,0.0001047,2]
[346594646,1735121471705,-500.0,0.0001047,2]
[346594647,1735121471713,-1283.79,0.0001047,2]
[346594648,1735121471727,-877.49,0.0001047,2]
[346594649,1735121471738,-1508.82,0.0001047,2]
[346594650,1735121471748,-500.0,0.0001047,2]
[346594651,1735121471758,-1554.05,0.0001047,2]
[346594652,1735121471768,-500.0,0.0001047,2]
[346594653,1735121471778,-978.36,0.0001047,2]
[346594654,1735121471788,-662.42,0.0001047,2]
[346594655,1735121471799,-783.59,0.0001047,2]
[346594656,1735121471809,-1337.89,0.0001047,2]
[346594657,1735121471818,-756.05,0.0001047,2]
[346594658,1735121471827,-1322.28,0.0001047,2]
[346594659,1735121471837,-769.14,0.0001047,2]
[346594660,1735121471847,-2479.6,0.0001047,2]
[346594661,1735121471856,-1468.56,0.0001047,2]
[346594662,1735121471865,-560.03,0.0001047,2]
[346594663,1735121471875,-769.15,0.0001047,2]
[346594664,1735121471884,-920.74,0.0001047,2]
[346594665,1735121471894,-2344.16,0.0001047,2]
[346594666,1735121471904,-1805.59,0.0001047,2]
[346594667,1735121471914,-504.67,0.0001047,2]
[346594668,1735121471923,-1997.26,0.0001047,2]
[346594669,1735121471933,-1613.18,0.0001047,2]
[346594670,1735121471943,-666.36,0.0001047,2]
[346594671,1735121471952,-1498.09,0.0001047,2]
[346594672,1735121471962,-1943.67,0.0001047,2]
[346594673,1735121471972,-1876.64,0.0001047,2]
[346594674,1735121471983,-1700.79,0.0001047,2]
[346594675,1735121471994,-1640.81,0.0001047,2]
[346594676,1735121472006,-1682.31,0.0001047,2]
[346594677,1735121472016,-8293.61,0.0001047,2]
[346594678,1735121472026,-3527.51,0.0001047,2]
[346594679,1735121472036,-500.0,0.0001047,2]
[346594680,1735121472046,-3060.42,0.0001047,2]
[346594681,1735121472055,-851.79,0.0001047,2]
[346594682,1735121472065,-6706.68,0.0001047,2]
[346594683,1735121472075,-1374.29,0.0001047,2]
[346594684,1735121472085,-2619.72,0.0001047,2]
[346594685,1735121472095,-693.15,0.0001047,2]
[346594686,1735121472105,-693.15,0.0001047,2]
[346594687,1735121472115,-3932.48,0.0001047,2]
[346594688,1735121472124,-1374.79,0.0001047,2]
[346594689,1735121472134,-2299.23,0.0001047,2]
[346594690,1735121472143,-4634.96,0.0001047,2]
[346594691,1735121472153,-3006.95,0.0001047,2]
[346594692,1735121472164,-1326.72,0.0001047,2]
[346594693,1735121472174,-888.61,0.0001047,2]
[346594694,1735121472184,-500.0,0.0001047,2]
[346594695,1735121472194,-9073.58,0.0001047,2]
[346594696,1735121472205,-1921.57,0.0001047,2]
[346594697,1735121472215,-53692.15,0.0001047,2]
[346594698,1735121472226,-1503.02,0.0001047,2]
[346594699,1735121472238,-1358.91,0.0001047,2]
[346594700,1735121472248,-7360.32,0.0001047,2]
[346594701,1735121472258,-2968.25,0.0001047,2]
[346594702,1735121472269,-4009.21,0.0001047,2]
[346594703,1735121472280,-2044.42,0.0001047,2]
[346594704,1735121472290,-2747.14,0.0001047,2]
[346594705,1735121472299,-1627.45,0.0001047,2]
[346594706,1735121472309,-3457.91,0.0001047,2]
[346594707,1735121472319,-1267.13,0.0001047,2]
[346594708,1735121472329,-5671.23,0.0001047,2]
[346594709,1735121472339,-500.0,0.0001047,2]
[346594710,1735121472349,-20535.4,0.0001047,2]
[346594711,1735121472359,-1689.17,0.0001047,2]
[346594712,1735121472369,-802.01,0.0001047,2]
[346594713,1735121472379,-1583.26,0.0001047,2]
[346594714,1735121472389,-3634.08,0.0001047,2]
[346594715,1735121472399,-3070.63,0.0001047,2]
[346594716,1735121472409,-1166.31,0.0001047,2]
[346594717,1735121472418,-1206.91,0.0001047,2]
[346594718,1735121472428,-2467.73,0.0001047,2]
[346594719,1735121472438,-935.87,0.0001047,2]
[346594720,1735121472448,-500.0,0.0001047,2]
[346594721,1735121472458,-9044.59,0.0001047,2]
[346594722,1735121472468,-1862.97,0.0001047,2]
[346594723,1735121472477,-1585.87,0.0001047,2]
[346594724,1735121472489,-1772.41,0.0001047,2]
[346594725,1735121472499,-1245.6,0.0001047,2]
[346594726,1735121472509,-3339.8,0.0001047,2]
[346594727,1735121472519,-2262.02,0.0001047,2]
[346594728,1735121472530,-2692.77,0.0001047,2]
[346594729,1735121472540,-2972.23,0.0001047,2]
[346594730,1735121472550,-239.16702753,0.00010471,2]
[346594731,1735121472562,-500.0,0.00010471,2]
[346594732,1735121472573,-500.0,0.00010471,2]
[346594733,1735121472585,-399.11408648,0.00010471,2]
[346594734,1735121472597,-500.0,0.00010471,2]
[346594735,1735121472607,-500.0,0.00010471,2]
[346594736,1735121472617,-500.0,0.00010471,2]
[346594737,1735121472627,-249.78292909,0.00010471,2]
[346594738,1735121472638,-500.0,0.00010471,2]
[346594739,1735121472648,-500.0,0.00010471,2]
[346594740,1735121472657,-376.99345226,0.00010471,2]
[346594741,1735121472666,-641.71,0.00010471,2]
[346594742,1735121472677,-754.77,0.00010471,2]
[346594743,1735121472686,-500.0,0.00010471,2]
[346594744,1735121472695,-518.89,0.00010471,2]
[346594745,1735121472705,-500.0,0.00010471,2]
[346594746,1735121472715,-833.33,0.00010471,2]
[346594747,1735121472724,-500.0,0.00010471,2]
[346594748,1735121472737,-500.0,0.00010471,2]
[346594749,1735121472748,-500.0,0.00010471,2]
[346594750,1735121472757,-500.0,0.00010471,2]
[346594751,1735121472767,-500.0,0.00010471,2]
[346594752,1735121472777,-500.0,0.00010471,2]
[346594753,1735121472787,-1035.88,0.00010471,2]
[346594754,1735121472797,-500.0,0.00010471,2]
[346594755,1735121472807,-1283.86,0.00010471,2]
[346594756,1735121472816,-228.26216291,0.00010471,2]
[346594757,1735121472826,-500.0,0.00010471,2]
[346594758,1735121472835,-1773.8,0.00010471,2]
[346594759,1735121472845,-614.02,0.00010471,2]
[346594760,1735121472854,-500.0,0.00010471,2]
[346594761,1735121472864,-500.0,0.00010471,2]
[346594762,1735121472873,-500.0,0.00010471,2]
[346594763,1735121472884,-500.0,0.00010471,2]
[346594764,1735121472894,-860.33,0.00010471,2]
[346594765,1735121472904,-500.0,0.00010471,2]
[346594766,1735121472914,-500.0,0.00010471,2]
[346594767,1735121472924,-500.0,0.00010471,2]
[346594768,1735121472933,-569.32,0.00010471,2]
[346594769,1735121472943,-764.7,0.00010471,2]
[346594770,1735121472952,-500.0,0.00010471,2]
[346594771,1735121472961,-500.0,0.00010471,2]
[346594772,1735121472971,-1260.5,0.00010471,2]
[346594773,1735121472983,-500.0,0.00010471,2]
[346594774,1735121472992,-1019.49,0.00010471,2]
[346594775,1735121473001,-699.0,0.00010471,2]
[346594776,1735121473011,-672.84,0.00010471,2]
[346594777,1735121473021,-500.0,0.00010471,2]
[346594778,1735121473031,-1504.08,0.00010471,2]
[346594779,1735121473040,-1418.39,0.00010471,2]
[346594780,1735121473050,-621.69,0.00010471,2]
[346594781,1735121473060,-688.96,0.00010471,2]
[346594782,1735121473070,-589.29,0.00010471,2]
[346594783,1735121473083,-500.0,0.00010471,2]
[346594784,1735121473093,-500.0,0.00010471,2]
[346594785,1735121473104,-500.0,0.00010471,2]
[346594786,1735121473113,-500.0,0.00010471,2]
[346594787,1735121473123,-540.93740787,0.00010471,2]
[346594788,1735121473133,-500.0,0.00010471,2]
[346594789,1735121473143,-500.0,0.00010471,2]
[346594790,1735121473152,-538.38,0.00010471,2]
[346594791,1735121473162,-500.0,0.00010471,2]
[346594792,1735121473171,-500.0,0.00010471,2]
[346594793,1735121473181,-500.0,0.00010471,2]
[346594794,1735121473190,-500.0,0.00010471,2]
[346594795,1735121473200,-1567.43,0.00010471,2]
[346594796,1735121473209,-785.09,0.00010471,2]
[346594797,1735121473219,-500.0,0.00010471,2]
[346594798,1735121473229,-500.0,0.00010471,2]
[346594799,1735121473242,-500.0,0.00010471,2]
[346594800,1735121473252,-3424.27,0.00010471,2]
[346594801,1735121473261,-500.0,0.00010471,2]
[346594802,1735121473271,-500.0,0.00010471,2]
[346594803,1735121473281,-500.0,0.00010471,2]
[346594804,1735121473290,-3150.72,0.00010471,2]
[346594805,1735121473473,-996.19,0.00010471,2]
[346594806,1735121473487,-500.0,0.00010471,2]
[346594807,1735121473498,-1011.13,0.00010471,2]
[346594808,1735121473509,-500.0,0.00010471,2]
[346594809,1735121473519,-500.0,0.00010471,2]
[346594810,1735121473528,-797.8,0.00010471,2]
[346594811,1735121473538,-500.0,0.00010471,2]
[346594812,1735121473548,-500.0,0.00010471,2]
[346594813,1735121473557,-622.07,0.00010471,2]
[346594814,1735121473568,-836.61,0.00010471,2]
[346594815,1735121473578,-1525.99,0.00010471,2]
[346594816,1735121473590,-500.0,0.00010471,2]
[346594817,1735121473600,-500.0,0.00010471,2]
[346594818,1735121473609,-500.0,0.00010471,2]
[346594819,1735121473618,-500.0,0.00010471,2]
[346594820,1735121473629,-500.0,0.00010471,2]
[346594821,1735121473638,-500.0,0.00010471,2]
[346594822,1735121473647,-500.0,0.00010471,2]
[346594823,1735121473656,-500.0,0.00010471,2]
[346594824,1735121473666,-1664.1,0.00010471,2]
[346594825,1735121473675,-832.11,0.00010471,2]
[346594826,1735121473685,-625.98,0.00010471,2]
[346594827,1735121473694,-500.0,0.00010471,2]
[346594828,1735121473703,-500.0,0.00010471,2]
[346594829,1735121473714,-609.36,0.00010471,2]
[346594830,1735121473724,-1579.22,0.00010471,2]
[346594831,1735121473736,-667.35,0.00010471,2]
[346594832,1735121473746,-500.0,0.00010471,2]
[346594833,1735121473756,-500.0,0.00010471,2]
[346594834,1735121473765,-500.0,0.00010471,2]
[346594835,1735121473775,-1634.64,0.00010471,2]
[346594836,1735121473784,-500.0,0.00010471,2]
[346594837,1735121473793,-1076.86,0.00010471,2]
[346594838,1735121473802,-620.97,0.00010471,2]
[346594839,1735121473811,-500.0,0.00010471,2]
[346594840,1735121473821,-811.35,0.00010471,2]
[346594841,1735121473829,-1068.35,0.00010471,2]
[346594842,1735121473838,-2333.75,0.00010471,2]
[346594843,1735121473847,-500.0,0.00010471,2]
[346594844,1735121473856,-1911.61,0.00010471,2]
[346594845,1735121473866,-606.76,0.00010471,2]
[346594846,1735121473875,-1683.53,0.00010471,2]
[346594847,1735121473884,-500.0,0.00010471,2]
[346594848,1735121473894,-500.0,0.00010471,2]
[346594849,1735121473903,-500.0,0.00010471,2]
[346594850,1735121473912,-1524.63,0.00010471,2]
[346594851,1735121473922,-500.0,0.00010471,2]
[346594852,1735121473931,-500.0,0.00010471,2]
[346594853,1735121473941,-500.0,0.00010471,2]